fUSD/lending_fUSD_20240607
["ID","MTS","AMOUNT","RATE_DAILY","PERIOD"]
[328731181,1717738231955,-8037.57089134,0.000249,2]
[328731182,1717738231966,-153.24184434,0.000249,2]
[328731183,1717738231976,-188.21543562,0.000249,2]
[328731184,1717738231986,-331.64592243,0.000249,2]
[328731185,1717738231997,-167.21,0.00024903,2]
[328731186,1717738232007,-879.99,0.0002497,3]
[328731187,1717738232020,-20999.01670207,0.0002498,5]
[328731214,1717738232346,-4228.0863352,0.0002498,5]
[328731215,1717738232358,-7823.73689433,0.0002498,5]
[328731216,1717738232370,-328.8373251,0.0002498,5]
[328731217,1717738232386,-385.01912969,0.0002498,5]
[328731218,1717738232398,-658.25,0.0002498,5]
[328731219,1717738232409,-460.43123519,0.0002498,5]
[328731220,1717738232420,-339.175,0.0002498,5]
[328731221,1717738232431,-8980.97957088,0.0002498,5]
[328731222,1717738232442,-1067.898852,0.0002498,5]
[328731223,1717738232453,-4728.56895554,0.0002498,5]
[328731224,1717738232463,-2409.33224446,0.0002498,2]
[328731225,1717738232474,-471.81328928,0.0002498,2]
[328731226,1717738232485,-432.92,0.0002498,2]
[328731227,1717738232509,-18854.74346626,0.0002498,2]
[328731228,1717738232518,-1087.67839386,0.00024998,2]
[328731229,1717738232528,-156.09542597,0.00024998,2]
[328731230,1717738232537,-649.30040776,0.00024999,2]
[328731231,1717738232546,-150.1943612,0.00024999,2]
[328731232,1717738232556,-350.0,0.00024999,2]
[328731233,1717738232565,-829.5763693,0.00024999,2]
[328731234,1717738232574,-108609.07719034,0.00025,2]
[328731235,1717738232589,-4321.14263448,0.00025,2]
[328731236,1717738232600,-363.6,0.00025,2]
[328731237,1717738232612,-12328.25531229,0.00025,2]
[328731238,1717738232623,-250.33780553,0.00025,2]
[328731239,1717738232634,-3971.07024,0.00025,2]
[328731240,1717738232645,-340.34,0.00025,2]
[328731241,1717738232669,-339.7200004,0.00025,2]
[328731247,1717738237646,-9881.99222486,0.00025,2]
[328731248,1717738237659,-7768.1384,0.00025,2]
[328731249,1717738237792,-7146.2938,0.00025,2]
[328731250,1717738237804,-18261.65070178,0.00025,2]
[328731251,1717738237815,-4009.85961769,0.00025,2]
[328731252,1717738237828,-410.63676069,0.00025,2]
[328731253,1717738237841,-88584.54265779,0.00025,2]
[328731254,1717738237855,-603.45575644,0.00025,2]
[328731255,1717738237867,-910.60655848,0.00025,2]
[328731256,1717738237878,-822.49017547,0.00025,2]
[328731257,1717738237931,-7944.81792,0.00025,2]
[328731258,1717738237944,-1062.99965272,0.00025,2]
[328731259,1717738237956,-399.70833916,0.00025,2]
[328731260,1717738237969,-3521.54486822,0.00025,2]
[328731261,1717738237981,-2068.59902885,0.00025,2]
[328731262,1717738237993,-1025.93346629,0.00025,2]
[328731263,1717738238005,-2084.0327375,0.00025,2]
[328731264,1717738238022,-2007.98320904,0.00025,2]
[328731265,1717738238034,-14181.69517129,0.00025,2]
[328731266,1717738238046,-358.33485164,0.00025,2]
[328731267,1717738238081,-712.08271485,0.00025,2]
[328731268,1717738238095,-672.57,0.00025,2]
[328731279,1717738240655,-505.53116172,0.00025,2]
[328731280,1717738240669,-7552.36266043,0.00025,2]
[328731281,1717738240768,-1568.29552831,0.00025,2]
[328731282,1717738240781,-1163.68068873,0.00025,2]
[328731283,1717738240794,-394.15965968,0.00025,2]
[328731284,1717738241958,-870.60999909,0.00025,2]
[328731285,1717738241970,-443.43736833,0.00025,2]
[328731286,1717738241981,-1071.43214066,0.00025,2]
[328731296,1717738243003,-546.23509259,0.00025,2]
[328731297,1717738243015,-661.66608519,0.00025,2]
[328731298,1717738243027,-19527.30545311,0.00025,2]
[328731299,1717738243040,-1040.16476904,0.00025,2]
[328731300,1717738243051,-5175.67671898,0.00025,2]
[328731301,1717738243063,-1432.04982035,0.00025,2]
[328731302,1717738243074,-1564.16297907,0.00025,2]
[328731303,1717738243086,-2533.52402036,0.00025,2]
[328731304,1717738243302,-1114.9636903,0.00025,2]
[328731305,1717738243314,-2251.10107188,0.00025,2]
[328731306,1717738243326,-3343.76656531,0.00025,2]
[328731307,1717738243338,-319.999995,0.00025,2]
[328731308,1717738243351,-693.78630288,0.00025,2]
[328731386,1717738245796,-155.0,0.00017259,2]
[328731387,1717738245806,-2914.12259211,0.00025,2]
[328731388,1717738245818,-1955.24704471,0.00025,2]
[328731389,1717738245829,-6818.12452324,0.00025,2]
[328731390,1717738245840,-4681.61278885,0.00025,2]
[328731391,1717738246068,-590.82,0.00025,2]
[328731393,1717738424049,288812.5481258,0.00014,2]
[328731394,1717738483884,410.69975604,0.00014,2]
[328731395,1717738497508,410.69975604,0.00014,2]
[328731396,1717738523518,410.69975604,0.00014,2]
[328731397,1717738545842,410.69975604,0.00014,2]
[328731398,1717738561515,410.69975604,0.00014,2]
[328731399,1717738579583,410.69975604,0.00014,2]
[328731400,1717738599527,410.69975604,0.00014,2]
[328731401,1717738616678,410.69975604,0.00014,2]
[328731404,1717738636675,410.69975604,0.00014,2]
[328731407,1717738654667,410.69975604,0.00014,2]
[328731409,1717738674674,432.93593746,0.00014,2]
[328731414,1717739193154,-155.0,0.00017214,2]
[328731415,1717739193175,-2969.29475949,0.00017215,2]
[328731420,1717739354049,1489.0,0.0003,40]
[328731429,1717739432127,-625.3983,0.00017,2]
[328731430,1717739432258,-174.6017,0.00017,2]
[328731431,1717739432268,-8262.41707512,0.00017205,2]
[328731432,1717739432279,-382.4775,0.00017205,2]
[328731433,1717739432291,-5169.50113198,0.00017205,2]
[328731434,1717739432436,-2611.87602153,0.00017205,2]
[328731435,1717739432449,-614.7279758,0.00017205,2]
[328731436,1717739432460,-428.101543,0.00017205,2]
[328731437,1717739432472,-41735.73286831,0.00017205,2]
[328731438,1717739432482,-236.8177042,0.00017214,2]
[328731439,1717739432492,-44779.78302984,0.00017225,2]
[328731440,1717739432503,-626.71201654,0.00017225,2]
[328731441,1717739432514,-346.48303694,0.00017225,2]
[328731442,1717739432526,-39231.16539894,0.00017225,2]
[328731443,1717739432535,-440.7769792,0.00017259,2]
[328731444,1717739432546,-353.5219707,0.0002,2]
[328731445,1717739432555,-364.12731579,0.0002,2]
[328731446,1717739432565,-226.6238354,0.000201,2]
[328731448,1717739432575,-424.87,0.00020709,2]
[328731449,1717739432584,-1464.1,0.0002271,2]
[328731450,1717739432594,-424.87,0.00022973,2]
[328731451,1717739432603,-26611.37,0.00023173,2]
[328731452,1717739432613,-1216.05,0.00023222,2]
[328731453,1717739432627,-250.0,0.00023297,2]
[328731454,1717739432636,-150.0,0.00023397,2]
[328731455,1717739432646,-250.0,0.0002343,2]
[328731456,1717739432656,-250.0,0.00023485,2]
[328731457,1717739432667,-1691.4,0.00023685,2]
[328731458,1717739432676,-235.26,0.00024125,2]
[328731459,1717739432686,-165.0,0.00024384,2]
[328731460,1717739432699,-155.99,0.00024384,2]
[328731461,1717739432710,-1000.0,0.00024493,2]
[328731462,1717739432719,-1435.96443312,0.000245,2]
[328731463,1717739432729,-392.25401,0.0002475,2]
[328731464,1717739432738,-9323.33808684,0.00024798,2]
[328731465,1717739432747,-9323.33808677,0.00024798,2]
[328731466,1717739432756,-153.24184431,0.00024799,2]
[328731467,1717739432766,-153.24184431,0.00024817,2]
[328731468,1717739432775,-403.70801457,0.00024899,2]
[328731469,1717739432785,-168.59784676,0.00024899,2]
[328731470,1717739432794,-3000.0,0.000249,2]
[328731471,1717739432803,-187.28935896,0.000249,2]
[328731472,1717739432813,-330.7930499,0.000249,2]
[328731473,1717739432823,-5289.28893931,0.00024998,2]
[328731474,1717739432832,-1804.68755728,0.00024998,2]
[328731475,1717739432841,-1493.9158589,0.00024999,2]
[328731476,1717739432851,-71820.81569204,0.00025,2]
[328731477,1717739432875,-35697.86639445,0.00025,2]
[328731486,1717739440100,-411.82170065,0.00025,2]
[328731487,1717739440112,-96466.49561193,0.00025,2]
[328731488,1717739440124,-827.62736338,0.00025,2]
[328731489,1717739440137,-850.82237907,0.00025,2]
[328731490,1717739440248,-2086.30090213,0.00025,2]
[328731491,1717739440258,-155.0,0.00025,2]
[328731492,1717739440268,-1250.0,0.00025,2]
[328731493,1717739440278,-775.14717706,0.00025,2]
[328731494,1717739440287,-446.79515573,0.00025,2]
[328731495,1717739440297,-200.0,0.00025,2]
[328731496,1717739440306,-4827.62,0.0002501,2]
[328731497,1717739440315,-9323.33808677,0.00025045,2]
[328731498,1717739440325,-180.0,0.00025096,2]
[328731499,1717739440334,-424.87,0.00025237,2]
[328731500,1717739440344,-765.0,0.00025265,2]
[328731501,1717739440354,-165.38,0.00025393,2]
[328731502,1717739440364,-1464.1,0.0002545,2]
[328731503,1717739440374,-206.3,0.00025643,2]
[328731504,1717739440384,-4997.48600169,0.00025739,2]
[328731505,1717739440409,-4325.85208508,0.00025739,2]
[328731506,1717739440419,-500.0,0.00025939,2]
[328731507,1717739440428,-171.65,0.00026071,2]
[328731508,1717739440438,-1630.80231435,0.00026432,2]
[328731509,1717739440450,-7692.53577242,0.00026432,2]
[328731510,1717739440459,-153.24184431,0.00026511,2]
[328731511,1717739440469,-3000.0,0.00026514,2]
[328731512,1717739440478,-1559.00598947,0.00026515,2]
[328731513,1717739440490,-1440.99401053,0.00026515,2]
[328731514,1717739440499,-3000.0,0.00026523,2]
[328731515,1717739440508,-3000.0,0.00026552,2]
[328731516,1717739440518,-921.53,0.00026556,2]
[328731517,1717739440528,-3000.0,0.00026572,2]
[328731518,1717739440538,-574.43280591,0.00026999,2]
[328731519,1717739440548,-260.76057231,0.00026999,2]
[328731520,1717739440557,-500.0,0.00026999,2]
[328731521,1717739440568,-500.0,0.00026999,2]
[328731522,1717739440577,-396.06942669,0.00026999,2]
[328731523,1717739440587,-246.18548824,0.00026999,2]
[328731524,1717739440597,-211.35018311,0.00027,2]
[328731530,1717739440728,-351.13088306,0.00027,2]
[328731536,1717739441101,-363.6,0.00027,2]
[328731537,1717739441250,-530.86535505,0.00027,2]
[328731538,1717739442590,-2571.08173639,0.00027,2]
[328731539,1717739442600,-1300.0,0.00027,2]
[328731540,1717739442609,-30751.50422185,0.00027,2]
[328731541,1717739442622,-2043.0,0.00027,3]
[328731542,1717739442632,-500.0,0.00027035,2]
[328731543,1717739442641,-800.0,0.00027123,2]
[328731544,1717739442651,-9323.33808677,0.00027126,2]
[328731545,1717739442660,-392.25402,0.0002725,2]
[328731546,1717739442671,-806.64368738,0.0002739,2]
[328731547,1717739442680,-461.58812896,0.00027397,2]
[328731548,1717739442689,-944.45,0.00027397,10]
[328731549,1717739442702,-655.0,0.000274,3]
[328731550,1717739442714,-322.49921896,0.000274,2]
[328731551,1717739442724,-757.09375759,0.000274,2]
[328731552,1717739442732,-187.28935894,0.000274,2]
[328731553,1717739442742,-158.4549025,0.000274,2]
[328731554,1717739442754,-269.58,0.000274,2]
[328731555,1717739442763,-269.58,0.000274,2]
[328731556,1717739442775,-850.0336618,0.000274,2]
[328731557,1717739442785,-55459.24892572,0.0002748,2]
[328731558,1717739442794,-424.87,0.000275,2]
[328731559,1717739442803,-1000.0,0.00027555,2]
[328731560,1717739442813,-318.108728,0.00027695,2]
[328731561,1717739442822,-175.926658,0.00027695,2]
[328731562,1717739442831,-721.375399,0.00027695,2]
[328731563,1717739442840,-601.111706,0.00027695,2]
[328731564,1717739442850,-150.0,0.00027698,2]
[328731565,1717739442861,-3000.0,0.000277,2]
[328731566,1717739442873,-150.0,0.00027733,2]
[328731567,1717739442884,-1500.0,0.00027819,2]
[328731568,1717739442894,-9323.33808677,0.00027819,2]
[328731569,1717739442905,-300.0,0.00027917,2]
[328731570,1717739442914,-300.0,0.0002798,2]
[328731571,1717739442924,-1133.34,0.0002799,10]
[328731572,1717739442933,-1500.0,0.00027992,2]
[328731573,1717739442943,-10674.53,0.00028,2]
[328731574,1717739442958,-300.0,0.00028007,2]
[328731576,1717739442969,-1500.0,0.00028008,2]
[328731578,1717739442978,-318.108728,0.00028041,2]
[328731579,1717739442988,-721.375399,0.00028041,2]
[328731581,1717739442998,-601.111706,0.00028041,2]
[328731582,1717739443007,-150.0,0.00028108,2]
[328731583,1717739443016,-500.0,0.00028131,2]
[328731584,1717739443026,-150.0,0.00028131,2]
[328731585,1717739443036,-150.0,0.00028138,2]
[328731586,1717739443045,-150.0,0.00028161,2]
[328731587,1717739443055,-150.0,0.00028179,2]
[328731589,1717739443064,-1464.1,0.0002819,2]
[328731590,1717739443073,-150.0,0.00028196,2]
[328731591,1717739443082,-153.24184431,0.00028206,2]
[328731592,1717739443093,-150.0,0.00028215,2]
[328731593,1717739443106,-150.0,0.00028248,2]
[328731594,1717739443116,-150.0,0.00028255,2]
[328731595,1717739443126,-150.0,0.00028265,2]
[328731596,1717739443135,-150.0,0.00028272,2]
[328731597,1717739443144,-150.0,0.0002829,2]
[328731598,1717739443153,-269.58,0.00028301,2]
[328731599,1717739443163,-453.211,0.00028311,2]
[328731600,1717739443173,-1028.896,0.00028311,2]
[328731601,1717739443183,-193.808,0.00028311,2]
[328731602,1717739443192,-2435.85,0.00028311,2]
[328731603,1717739443201,-812.826,0.00028311,2]
[328731604,1717739443212,-452.156,0.00028311,2]
[328731605,1717739443221,-220.346,0.00028311,2]
[328731606,1717739443230,-1330.805,0.00028311,2]
[328731607,1717739443240,-158.874,0.00028311,2]
[328731608,1717739443249,-3188.728,0.00028311,2]
[328731609,1717739443258,-556.5,0.00028311,2]
[328731610,1717739443268,-302.717,0.00028311,2]
[328731611,1717739443277,-18600.60962053,0.00028311,2]
[328731612,1717739443289,-1242.34252611,0.00028311,2]
[328731613,1717739443301,-611.62444778,0.00028311,2]
[328731614,1717739443312,-17579.42340558,0.00028311,2]
[328731615,1717739443321,-5178.919,0.00028311,2]
[328731616,1717739443331,-5821.561,0.00028311,2]
[328731617,1717739443340,-1500.0,0.00028318,2]
[328731618,1717739443350,-150.0,0.00028346,2]
[328731619,1717739443359,-150.0,0.00028351,2]
[328731620,1717739443368,-150.0,0.00028373,2]
[328731621,1717739443377,-150.0,0.00028375,2]
[328731622,1717739443387,-318.108728,0.00028387,2]
[328731623,1717739443397,-721.375399,0.00028387,2]
[328731624,1717739443406,-601.111706,0.00028387,2]
[328731625,1717739443416,-150.0,0.00028398,2]
[328731626,1717739443426,-150.0,0.0002841,2]
[328731627,1717739443435,-300.0,0.00028414,2]
[328731628,1717739443445,-150.0,0.00028441,2]
[328731629,1717739443454,-150.0,0.0002845,2]
[328731630,1717739443464,-150.0,0.0002845,2]
[328731631,1717739443474,-1500.0,0.00028456,2]
[328731632,1717739443483,-150.0,0.00028466,2]
[328731633,1717739443492,-1500.0,0.00028478,2]
[328731634,1717739443501,-150.0,0.00028492,2]
[328731635,1717739443510,-12710.09622424,0.000285,3]
[328731636,1717739443519,-1500.0,0.0002851,2]
[328731637,1717739443529,-9323.33808677,0.00028513,2]
[328731638,1717739443538,-150.0,0.00028538,2]
[328731639,1717739443547,-150.0,0.00028568,2]
[328731640,1717739443557,-150.0,0.00028601,2]
[328731641,1717739443567,-1025.58252144,0.00028634,2]
[328731642,1717739443576,-150.0,0.00028641,2]
[328731643,1717739443586,-150.0,0.0002865,2]
[328731644,1717739443595,-150.0,0.00028666,2]
[328731645,1717739443604,-150.0,0.00028675,2]
[328731646,1717739443614,-1522.05576886,0.00028695,2]
[328731647,1717739443627,-1500.0,0.00028698,2]
[328731648,1717739443636,-150.0,0.00028717,2]
[328731649,1717739443646,-318.108728,0.00028734,2]
[328731650,1717739443655,-721.375399,0.00028734,2]
[328731651,1717739443664,-601.111706,0.00028734,2]
[328731652,1717739443674,-150.0,0.00028737,2]
[328731653,1717739443683,-449.183129,0.00028759,2]
[328731654,1717739443692,-150.0,0.0002876,2]
[328731655,1717739443702,-150.0,0.00028762,2]
[328731656,1717739443712,-150.0,0.00028765,2]
[328731657,1717739443722,-150.0,0.00028788,2]
[328731658,1717739443731,-1500.0,0.00028792,2]
[328731659,1717739443740,-150.0,0.00028805,2]
[328731660,1717739443750,-150.0,0.00028811,2]
[328731661,1717739443759,-300.0,0.00028815,2]
[328731662,1717739443768,-150.0,0.00028821,2]
[328731663,1717739443778,-150.0,0.00028829,2]
[328731664,1717739443787,-307.51292732,0.00028832,2]
[328731665,1717739443796,-150.0,0.00028848,2]
[328731666,1717739443806,-150.0,0.00028869,2]
[328731667,1717739443815,-305.51713858,0.0002887,2]
[328731668,1717739443825,-1500.0,0.00028873,2]
[328731669,1717739443835,-294.21406988,0.00028885,2]
[328731670,1717739443844,-168.59,0.00028885,2]
[328731671,1717739443854,-150.0,0.00028886,2]
[328731672,1717739443865,-300.0,0.000289,10]
[328731673,1717739443875,-300.00238613,0.00028914,2]
[328731674,1717739443885,-150.0,0.00028917,2]
[328731675,1717739443898,-150.0,0.00028923,2]
[328731676,1717739443909,-150.0,0.00028964,2]
[328731677,1717739443919,-300.0,0.00028977,2]
[328731678,1717739443928,-150.0,0.00028987,2]
[328731679,1717739443938,-265.97843345,0.0002899,2]
[328731680,1717739443947,-153.63,0.0002899,2]
[328731681,1717739443957,-269.58,0.0002899,2]
[328731682,1717739443967,-150.0,0.00028993,2]
[328731683,1717739443977,-397.2596353,0.00029,2]
[328731684,1717739443986,-90921.07287102,0.00029,2]
[328731685,1717739444240,-2000.0,0.000274,2]
[328731686,1717739444250,-150.0,0.00028623,2]
[328731687,1717739444259,-150.0,0.00028708,2]
[328731688,1717739444269,-150.0,0.00028897,2]
[328731689,1717739444278,-150.0,0.00028964,2]
[328731690,1717739444288,-68731.51284951,0.00029,2]
[328731691,1717739444301,-651.71689957,0.00029,2]
[328731692,1717739444340,-150.0,0.00028769,2]
[328731693,1717739444350,-2374.17941639,0.00029,2]
[328731694,1717739444910,-150.0,0.00028095,2]
[328731695,1717739444920,-150.0,0.00028197,2]
[328731696,1717739444929,-150.0,0.00028228,2]
[328731697,1717739444938,-150.0,0.00028244,2]
[328731698,1717739444948,-150.0,0.00028248,2]
[328731699,1717739444957,-150.0,0.00028415,2]
[328731700,1717739444967,-150.0,0.00028438,2]
[328731701,1717739444977,-150.0,0.00028488,2]
[328731702,1717739444986,-150.0,0.00028496,2]
[328731703,1717739444995,-150.0,0.00028668,2]
[328731704,1717739445005,-150.0,0.00028687,2]
[328731705,1717739445014,-150.0,0.00028771,2]
[328731706,1717739445023,-150.0,0.00028814,2]
[328731707,1717739445033,-150.0,0.00028917,2]
[328731708,1717739445042,-150.0,0.0002892,2]
[328731709,1717739445051,-150.0,0.00028949,2]
[328731710,1717739445062,-150.0,0.00028963,2]
[328731711,1717739445071,-6000.01844969,0.00029,2]
[328731712,1717739445083,-79983.25723199,0.00029,2]
[328731713,1717739445092,-1350.0,0.00029,2]
[328731714,1717739445102,-9049.31052412,0.00029,2]
[328731715,1717739445111,-164.44516,0.00029,2]
[328731716,1717739445121,-150.0,0.00029,2]
[328731717,1717739445130,-700.0,0.00029,10]
[328731718,1717739445140,-1500.0,0.00029004,2]
[328731719,1717739445149,-150.0,0.00029007,2]
[328731720,1717739445159,-150.0,0.00029012,2]
[328731721,1717739445168,-150.0,0.00029014,2]
[328731722,1717739445177,-150.0,0.00029014,2]
[328731723,1717739445187,-300.0,0.00029018,2]
[328731724,1717739445196,-150.0,0.00029018,2]
[328731725,1717739445206,-162.93913658,0.00029042,2]
[328731726,1717739445215,-150.0,0.00029045,2]
[328731727,1717739445224,-150.0,0.00029046,2]
[328731728,1717739445233,-1500.0,0.00029049,2]
[328731729,1717739445242,-150.0,0.00029056,2]
[328731730,1717739445253,-150.0,0.00029062,2]
[328731731,1717739445263,-150.0,0.00029066,2]
[328731732,1717739445272,-150.0,0.0002907,2]
[328731733,1717739445281,-1500.0,0.00029078,2]
[328731734,1717739445291,-150.0,0.00029078,2]
[328731735,1717739445300,-175.926658,0.0002908,2]
[328731736,1717739445310,-318.108728,0.0002908,2]
[328731737,1717739445319,-721.375399,0.0002908,2]
[328731738,1717739445328,-601.111706,0.0002908,2]
[328731739,1717739445337,-5000.0,0.00029082,2]
[328731740,1717739445347,-150.0,0.00029088,2]
[328731741,1717739445357,-150.0,0.00029089,2]
[328731742,1717739445366,-1500.0,0.00029095,2]
[328731743,1717739445376,-151.0,0.00029096,7]
[328731744,1717739445385,-150.0,0.00029099,2]
[328731745,1717739445396,-1100.0,0.000291,10]
[328731746,1717739445406,-150.0,0.00029101,2]
[328731747,1717739445416,-150.0,0.00029102,2]
[328731748,1717739445425,-150.0,0.0002911,2]
[328731749,1717739445434,-3712.40017572,0.00029127,2]
[328731750,1717739445444,-150.0,0.0002913,2]
[328731751,1717739445453,-150.0,0.0002913,2]
[328731752,1717739445463,-150.0,0.00029132,2]
[328731753,1717739445472,-150.0,0.00029136,2]
[328731754,1717739445482,-300.0,0.00029139,2]
[328731755,1717739445491,-150.0,0.00029143,2]
[328731756,1717739445501,-150.0,0.00029145,2]
[328731757,1717739445510,-150.0,0.00029151,2]
[328731758,1717739445520,-150.0,0.00029153,2]
[328731759,1717739445530,-150.0,0.00029155,2]
[328731760,1717739445540,-150.0,0.00029159,2]
[328731761,1717739445550,-150.0,0.00029159,2]
[328731762,1717739445559,-1500.0,0.00029164,2]
[328731763,1717739445568,-1025.58252144,0.00029167,2]
[328731764,1717739445577,-150.0,0.00029173,2]
[328731765,1717739445587,-150.0,0.00029185,2]
[328731766,1717739445596,-150.0,0.0002919,2]
[328731767,1717739445606,-269.58,0.00029197,2]
[328731768,1717739445616,-3712.40017565,0.00029197,2]
[328731769,1717739445629,-150.0,0.00029199,2]
[328731770,1717739445639,-1500.0,0.000292,10]
[328731771,1717739445648,-150.0,0.00029201,2]
[328731772,1717739445658,-9323.33808677,0.00029206,15]
[328731773,1717739445670,-150.0,0.00029208,2]
[328731774,1717739445680,-25000.0,0.00029215,2]
[328731775,1717739445690,-500.0,0.00029227,2]
[328731776,1717739445706,-150.0,0.00029234,2]
[328731777,1717739445717,-150.0,0.0002925,2]
[328731778,1717739445729,-150.0,0.00029257,2]
[328731779,1717739445739,-150.0,0.00029264,2]
[328731780,1717739445749,-150.0,0.00029266,2]
[328731781,1717739445759,-3712.40017565,0.00029268,2]
[328731782,1717739445770,-150.0,0.00029268,2]
[328731783,1717739445781,-1500.0,0.00029274,2]
[328731784,1717739445791,-300.0,0.00029276,2]
[328731785,1717739445800,-300.0,0.00029276,2]
[328731786,1717739445809,-1500.0,0.00029278,2]
[328731787,1717739445819,-150.0,0.00029282,2]
[328731788,1717739445830,-150.0,0.00029284,2]
[328731789,1717739445840,-150.0,0.00029294,2]
[328731790,1717739445849,-150.0,0.00029298,2]
[328731791,1717739445860,-150.0,0.00029299,2]
[328731792,1717739445870,-1900.0,0.000293,10]
[328731793,1717739445881,-300.0,0.00029301,2]
[328731794,1717739445892,-150.0,0.00029302,2]
[328731795,1717739445901,-150.0,0.00029304,2]
[328731796,1717739445911,-1500.0,0.00029313,2]
[328731797,1717739445922,-150.0,0.00029316,2]
[328731798,1717739445932,-1500.0,0.00029318,2]
[328731799,1717739445943,-150.0,0.00029322,2]
[328731801,1717739445953,-150.0,0.00029326,2]
[328731803,1717739445962,-150.0,0.00029328,2]
[328731804,1717739445973,-1500.0,0.00029328,2]
[328731805,1717739445983,-150.0,0.00029331,2]
[328731806,1717739445993,-155.1458977,0.00029332,2]
[328731807,1717739446003,-3712.40017565,0.00029338,2]
[328731808,1717739446013,-186.81834437,0.00029344,2]
[328731809,1717739446023,-1500.0,0.00029354,2]
[328731810,1717739446032,-155.1458977,0.00029358,2]
[328731811,1717739446042,-335.84481344,0.00029361,2]
[328731812,1717739446051,-335.84481344,0.00029363,2]
[328731813,1717739446061,-158.17888295,0.00029363,2]
[328731814,1717739446070,-150.0,0.00029364,2]
[328731815,1717739446080,-1500.0,0.00029367,2]
[328731816,1717739446089,-152.05868177,0.00029372,2]
[328731817,1717739446098,-150.0,0.00029374,2]
[328731818,1717739446108,-150.0,0.00029374,2]
[328731819,1717739446118,-150.0,0.00029382,2]
[328731820,1717739446127,-150.0,0.00029383,2]
[328731821,1717739446137,-150.0,0.00029383,2]
[328731822,1717739446146,-207.37527327,0.00029384,2]
[328731823,1717739446156,-150.0,0.00029386,2]
[328731824,1717739446166,-150.0,0.00029393,2]
[328731825,1717739446175,-1500.0,0.00029397,2]
[328731826,1717739446185,-300.0,0.00029398,2]
[328731827,1717739446194,-300.0,0.000294,10]
[328731828,1717739446204,-3712.40017565,0.00029408,2]
[328731829,1717739446214,-155.6706329,0.00029411,2]
[328731830,1717739446224,-186.81834437,0.00029416,2]
[328731831,1717739446234,-150.0,0.00029423,2]
[328731832,1717739446244,-335.84481344,0.00029431,2]
[328731833,1717739446253,-150.0,0.00029446,2]
[328731834,1717739446262,-150.0,0.00029448,2]
[328731835,1717739446271,-300.0,0.00029448,2]
[328731836,1717739446280,-150.0,0.00029449,2]
[328731837,1717739446290,-186.81834437,0.0002945,2]
[328731838,1717739446299,-155.1458977,0.00029452,2]
[328731839,1717739446308,-150.0,0.00029458,2]
[328731840,1717739446318,-150.0,0.00029458,2]
[328731841,1717739446327,-153.43834955,0.00029465,2]
[328731842,1717739446336,-3712.40017565,0.00029478,2]
[328731843,1717739446532,-300.0,0.00029484,2]
[328731844,1717739446542,-154.24763111,0.00029487,2]
[328731845,1717739446551,-166.66666668,0.00029489,2]
[328731846,1717739446560,-150.0,0.00029489,2]
[328731847,1717739446569,-302.26021311,0.00029495,2]
[328731848,1717739446578,-5000.0,0.00029499,2]
[328731849,1717739446588,-640.80878203,0.000295,2]
[328731850,1717739446597,-300.0,0.000295,10]
[328731851,1717739446606,-150.0,0.00029505,2]
[328731852,1717739446618,-150.0,0.00029508,2]
[328731853,1717739446631,-150.0,0.00029515,2]
[328731854,1717739446640,-150.0,0.00029516,2]